[Event "Titled Tuesday Blitz August 1 Late 2023"]
[White "Bortnyk, Olexandr"]
[Black "Tologon tegin, Semetei"]
[WhiteFideId "14120828"]
[BlackFideId "13800574"]
[WhiteElo "3065"]
[BlackElo "2603"]
[Result "1-0"]
[Round "4"]
[TimeControl "180+1"]
[Date "2023.08.01"]
[WhiteClock "0:00:46"]
[BlackClock "0:00:09"]
[Board "19"]

1. d4 {[%clk 0:03:00]}  Nf6 {[%clk 0:02:58]} 2. Nc3 {[%clk 0:03:01]}  c5 {[%clk 0:02:52]} 3. d5 {[%clk 0:03:00]}  d6 {[%clk 0:02:50]} 4. e4 {[%clk 0:02:59]}  g6 {[%clk 0:02:50]} 5. f4 {[%clk 0:02:58]}  Bg7 {[%clk 0:02:51]} 6. Nf3 {[%clk 0:02:37]}  O-O {[%clk 0:02:50]} 7. e5 {[%clk 0:02:26]}  dxe5 {[%clk 0:02:48]} 8. fxe5 {[%clk 0:02:27]}  Ng4 {[%clk 0:02:44]} 9. Bf4 {[%clk 0:02:25]}  Nd7 {[%clk 0:02:43]} 10. Qe2 {[%clk 0:02:23]}  f6 {[%clk 0:02:33]} 11. e6 {[%clk 0:02:21]}  Nde5 {[%clk 0:02:33]} 12. O-O-O {[%clk 0:02:14]}  Nxf3 {[%clk 0:02:32]} 13. gxf3 {[%clk 0:02:13]}  Ne5 {[%clk 0:02:32]} 14. Be3 {[%clk 0:02:09]}  f5 {[%clk 0:01:18]} 15. Bxc5 {[%clk 0:02:07]}  Re8 {[%clk 0:01:00]} 16. Bd4 {[%clk 0:01:59]}  Qc7 {[%clk 0:00:50]} 17. Nb5 {[%clk 0:01:41]}  Qb8 {[%clk 0:00:49]} 18. Re1 {[%clk 0:01:30]}  a6 {[%clk 0:00:48]} 19. Bxe5 {[%clk 0:01:29]}  Bxe5 {[%clk 0:00:47]} 20. Qxe5 {[%clk 0:01:30]}  Qxe5 {[%clk 0:00:47]} 21. Rxe5 {[%clk 0:01:31]}  axb5 {[%clk 0:00:47]} 22. Bxb5 {[%clk 0:01:32]}  Rd8 {[%clk 0:00:47]} 23. a4 {[%clk 0:01:30]}  b6 {[%clk 0:00:44]} 24. b3 {[%clk 0:01:26]}  Rd6 {[%clk 0:00:38]} 25. c4 {[%clk 0:01:25]}  Bb7 {[%clk 0:00:38]} 26. h4 {[%clk 0:01:21]}  Kg7 {[%clk 0:00:38]} 27. f4 {[%clk 0:01:21]}  Kf6 {[%clk 0:00:34]} 28. Kb2 {[%clk 0:01:20]}  h6 {[%clk 0:00:33]} 29. Rg1 {[%clk 0:01:21]}  Rg8 {[%clk 0:00:32]} 30. Re2 {[%clk 0:01:19]}  g5 {[%clk 0:00:31]} 31. hxg5+ {[%clk 0:01:19]}  hxg5 {[%clk 0:00:32]} 32. Rh2 {[%clk 0:01:16]}  Rg6 {[%clk 0:00:30]} 33. fxg5+ {[%clk 0:01:15]}  Rxg5 {[%clk 0:00:30]} 34. Rxg5 {[%clk 0:01:15]}  Kxg5 {[%clk 0:00:30]} 35. Rh7 {[%clk 0:01:16]}  f4 {[%clk 0:00:17]} 36. Rxe7 {[%clk 0:01:15]}  Bc8 {[%clk 0:00:16]} 37. Bd7 {[%clk 0:01:13]}  Bxd7 {[%clk 0:00:15]} 38. Rxd7 {[%clk 0:01:14]}  f3 {[%clk 0:00:13]} 39. Rf7 {[%clk 0:00:47]}  Rd8 {[%clk 0:00:09]} 40. Rxf3 {[%clk 0:00:46]} 1-0


[Site "https://www.chess.com"]

[Event "Titled Tuesday Blitz August 1 Late 2023"]
[White "Ponikarovsky, Alexey"]
[Black "Xiong, Jeffery"]
[WhiteFideId "4122887"]
[BlackFideId "2047640"]
[WhiteElo "2687"]
[BlackElo "2987"]
[Result "0-1"]
[Round "4"]
[TimeControl "180+1"]
[Date "2023.08.01"]
[WhiteClock "0:01:17"]
[BlackClock "0:00:28"]
[Board "22"]

1. e4 {[%clk 0:03:00]}  c5 {[%clk 0:02:59]} 2. d4 {[%clk 0:03:00]}  cxd4 {[%clk 0:03:00]} 3. Nf3 {[%clk 0:03:01]}  d6 {[%clk 0:02:54]} 4. Bc4 {[%clk 0:03:02]}  Nf6 {[%clk 0:02:49]} 5. Qe2 {[%clk 0:03:01]}  Bg4 {[%clk 0:02:34]} 6. O-O {[%clk 0:03:01]}  Nc6 {[%clk 0:02:30]} 7. c3 {[%clk 0:03:00]}  e6 {[%clk 0:02:27]} 8. Rd1 {[%clk 0:02:56]}  Be7 {[%clk 0:02:16]} 9. cxd4 {[%clk 0:02:54]}  d5 {[%clk 0:02:16]} 10. exd5 {[%clk 0:02:50]}  Nxd5 {[%clk 0:02:17]} 11. Nc3 {[%clk 0:02:49]}  O-O {[%clk 0:02:17]} 12. h3 {[%clk 0:02:47]}  Bh5 {[%clk 0:02:17]} 13. Be3 {[%clk 0:02:48]}  Nxe3 {[%clk 0:02:13]} 14. fxe3 {[%clk 0:02:47]}  Na5 {[%clk 0:02:05]} 15. Bd3 {[%clk 0:02:45]}  Rc8 {[%clk 0:02:04]} 16. Rac1 {[%clk 0:02:45]}  a6 {[%clk 0:02:04]} 17. a3 {[%clk 0:02:38]}  b5 {[%clk 0:01:58]} 18. Ne4 {[%clk 0:02:33]}  Qd5 {[%clk 0:01:56]} 19. Ng3 {[%clk 0:02:33]}  Bg6 {[%clk 0:01:47]} 20. Ne5 {[%clk 0:02:33]}  Bxd3 {[%clk 0:01:43]} 21. Nxd3 {[%clk 0:02:34]}  Nc4 {[%clk 0:01:40]} 22. Rc2 {[%clk 0:02:28]}  Bg5 {[%clk 0:01:37]} 23. Nf4 {[%clk 0:02:26]}  Bxf4 {[%clk 0:01:20]} 24. exf4 {[%clk 0:02:27]}  Nb6 {[%clk 0:01:18]} 25. Rcd2 {[%clk 0:02:24]}  Qd6 {[%clk 0:01:14]} 26. Qf2 {[%clk 0:02:17]}  Rfe8 {[%clk 0:01:09]} 27. f5 {[%clk 0:02:14]}  Nd5 {[%clk 0:01:08]} 28. Rf1 {[%clk 0:02:10]}  Nf6 {[%clk 0:01:04]} 29. fxe6 {[%clk 0:02:07]}  Qxe6 {[%clk 0:01:05]} 30. Rd3 {[%clk 0:02:05]}  Nd5 {[%clk 0:01:04]} 31. Nf5 {[%clk 0:02:03]}  f6 {[%clk 0:01:02]} 32. Rg3 {[%clk 0:02:02]}  g6 {[%clk 0:01:02]} 33. h4 {[%clk 0:01:53]}  Kh8 {[%clk 0:01:01]} 34. Nh6 {[%clk 0:01:50]}  Qe4 {[%clk 0:00:51]} 35. Nf7+ {[%clk 0:01:48]}  Kg7 {[%clk 0:00:48]} 36. Nd6 {[%clk 0:01:48]}  Qe6 {[%clk 0:00:47]} 37. Nxc8 {[%clk 0:01:46]}  Rxc8 {[%clk 0:00:48]} 38. Re1 {[%clk 0:01:46]}  Qd7 {[%clk 0:00:47]} 39. h5 {[%clk 0:01:47]}  Ne7 {[%clk 0:00:46]} 40. h6+ {[%clk 0:01:46]}  Kf7 {[%clk 0:00:44]} 41. Rd3 {[%clk 0:01:41]}  Qd5 {[%clk 0:00:43]} 42. Qe2 {[%clk 0:01:39]}  Nf5 {[%clk 0:00:43]} 43. Red1 {[%clk 0:01:38]}  Nxh6 {[%clk 0:00:42]} 44. Rh3 {[%clk 0:01:37]}  Kg7 {[%clk 0:00:42]} 45. Qe7+ {[%clk 0:01:35]}  Nf7 {[%clk 0:00:40]} 46. Rf3 {[%clk 0:01:32]}  Rc6 {[%clk 0:00:40]} 47. Qe3 {[%clk 0:01:31]}  Re6 {[%clk 0:00:39]} 48. Qf4 {[%clk 0:01:30]}  Nd6 {[%clk 0:00:39]} 49. Rdf1 {[%clk 0:01:30]}  g5 {[%clk 0:00:37]} 50. Qg4 {[%clk 0:01:28]}  Kg6 {[%clk 0:00:36]} 51. Rd3 {[%clk 0:01:27]}  h5 {[%clk 0:00:35]} 52. Qd1 {[%clk 0:01:26]}  Nf5 {[%clk 0:00:33]} 53. Qc2 {[%clk 0:01:26]}  Kg7 {[%clk 0:00:29]} 54. Rfd1 {[%clk 0:01:24]}  Ne3 {[%clk 0:00:29]} 55. Rxe3 {[%clk 0:01:22]}  Rxe3 {[%clk 0:00:28]} 56. Qc7+ {[%clk 0:01:21]}  Kg6 {[%clk 0:00:28]} 57. Qc2+ {[%clk 0:01:21]}  Qe4 {[%clk 0:00:28]} 58. Qd2 {[%clk 0:01:20]}  Re2 {[%clk 0:00:28]} 59. Qd3 {[%clk 0:01:19]}  Rxg2+ {[%clk 0:00:28]} 60. Kf1 {[%clk 0:01:18]}  Qxd3+ {[%clk 0:00:29]} 61. Rxd3 {[%clk 0:01:17]}  Rxb2 {[%clk 0:00:28]} 0-1


[Site "https://www.chess.com"]

[Event "Titled Tuesday Blitz August 1 Late 2023"]
[White "Tanriverdi, Enes"]
[Black "Terry, Renato"]
[WhiteFideId "34543279"]
[BlackFideId "3803457"]
[WhiteElo "2683"]
[BlackElo "2922"]
[Result "1-0"]
[Round "4"]
[TimeControl "180+1"]
[Date "2023.08.01"]
[WhiteClock "0:00:30"]
[BlackClock "0:00:00"]
[Board "23"]

1. Nf3 {[%clk 0:02:54]}  Nf6 {[%clk 0:02:59]} 2. g3 {[%clk 0:02:54]}  d5 {[%clk 0:02:59]} 3. Bg2 {[%clk 0:02:55]}  c6 {[%clk 0:02:59]} 4. O-O {[%clk 0:02:56]}  Bg4 {[%clk 0:02:58]} 5. c4 {[%clk 0:02:56]}  dxc4 {[%clk 0:02:58]} 6. Qc2 {[%clk 0:02:55]}  Qd5 {[%clk 0:02:57]} 7. b3 {[%clk 0:02:46]}  cxb3 {[%clk 0:02:53]} 8. axb3 {[%clk 0:02:47]}  Qh5 {[%clk 0:02:49]} 9. d4 {[%clk 0:02:44]}  Nbd7 {[%clk 0:02:46]} 10. Nc3 {[%clk 0:02:41]}  e6 {[%clk 0:02:45]} 11. Nh4 {[%clk 0:02:21]}  g5 {[%clk 0:02:41]} 12. Nf3 {[%clk 0:02:17]}  h6 {[%clk 0:02:39]} 13. Bb2 {[%clk 0:02:07]}  Be7 {[%clk 0:02:26]} 14. Ne5 {[%clk 0:02:04]}  Bh3 {[%clk 0:01:57]} 15. Nxd7 {[%clk 0:01:54]}  Kxd7 {[%clk 0:01:49]} 16. f3 {[%clk 0:01:51]}  Bxg2 {[%clk 0:01:12]} 17. Kxg2 {[%clk 0:01:49]}  Qg6 {[%clk 0:01:06]} 18. e4 {[%clk 0:01:49]}  Rhd8 {[%clk 0:00:57]} 19. Rad1 {[%clk 0:01:43]}  Ke8 {[%clk 0:00:57]} 20. Rfe1 {[%clk 0:01:43]}  Kf8 {[%clk 0:00:55]} 21. Na4 {[%clk 0:01:39]}  Kg8 {[%clk 0:00:51]} 22. Nc5 {[%clk 0:01:38]}  b6 {[%clk 0:00:51]} 23. Nd3 {[%clk 0:01:36]}  Rac8 {[%clk 0:00:23]} 24. Ne5 {[%clk 0:01:35]}  Qh7 {[%clk 0:00:17]} 25. Nxc6 {[%clk 0:01:35]}  Bf8 {[%clk 0:00:17]} 26. d5 {[%clk 0:01:34]}  Nxd5 {[%clk 0:00:18]} 27. Qf2 {[%clk 0:01:27]}  Rxc6 {[%clk 0:00:16]} 28. exd5 {[%clk 0:01:26]}  Rc2 {[%clk 0:00:15]} 29. Re2 {[%clk 0:01:27]}  Rxe2 {[%clk 0:00:12]} 30. Qxe2 {[%clk 0:01:27]}  Rxd5 {[%clk 0:00:13]} 31. Rxd5 {[%clk 0:01:28]}  exd5 {[%clk 0:00:13]} 32. Qe5 {[%clk 0:01:27]}  f5 {[%clk 0:00:03]} 33. Qxd5+ {[%clk 0:01:19]}  Qf7 {[%clk 0:00:03]} 34. Qd3 {[%clk 0:01:19]}  Kh7 {[%clk 0:00:02]} 35. h3 {[%clk 0:01:19]}  Kg6 {[%clk 0:00:02]} 36. g4 {[%clk 0:01:19]}  Qe6 {[%clk 0:00:02]} 37. Bd4 {[%clk 0:01:17]}  Qd5 {[%clk 0:00:02]} 38. Qe3 {[%clk 0:01:14]}  Kf7 {[%clk 0:00:02]} 39. Bb2 {[%clk 0:01:05]}  Bc5 {[%clk 0:00:02]} 40. Qc3 {[%clk 0:01:05]}  Ke8 {[%clk 0:00:02]} 41. b4 {[%clk 0:00:57]}  Be7 {[%clk 0:00:02]} 42. Qc8+ {[%clk 0:00:54]}  Kf7 {[%clk 0:00:03]} 43. Qc2 {[%clk 0:00:54]}  Bxb4 {[%clk 0:00:02]} 44. Qc7+ {[%clk 0:00:51]}  Be7 {[%clk 0:00:03]} 45. Be5 {[%clk 0:00:36]}  fxg4 {[%clk 0:00:03]} 46. hxg4 {[%clk 0:00:36]}  a5 {[%clk 0:00:03]} 47. Bg3 {[%clk 0:00:35]}  Qe6 {[%clk 0:00:02]} 48. Qa7 {[%clk 0:00:33]}  Kf6 {[%clk 0:00:01]} 49. Bf2 {[%clk 0:00:34]}  Kg6 {[%clk 0:00:02]} 50. Bd4 {[%clk 0:00:33]}  a4 {[%clk 0:00:02]} 51. Bxb6 {[%clk 0:00:33]}  Qe2+ {[%clk 0:00:02]} 52. Bf2 {[%clk 0:00:33]}  Qc4 {[%clk 0:00:01]} 53. Qxe7 {[%clk 0:00:31]}  Qb3 {[%clk 0:00:02]} 54. Qd6+ {[%clk 0:00:31]}  Kh7 {[%clk 0:00:02]} 55. Bd4 {[%clk 0:00:32]}  Kg8 {[%clk 0:00:00]} 56. Qd7 {[%clk 0:00:30]} 1-0


[Site "https://www.chess.com"]

[Event "Titled Tuesday Blitz August 1 Late 2023"]
[White "Moral Garcia, Serafin"]
[Black "Harshavardhan G B"]
[WhiteFideId "2201925"]
[BlackFideId "25059009"]
[WhiteElo "2538"]
[BlackElo "2868"]
[Result "0-1"]
[Round "4"]
[TimeControl "180+1"]
[Date "2023.08.01"]
[WhiteClock "0:00:00"]
[BlackClock "0:00:15"]
[Board "24"]

1. e4 {[%clk 0:03:00]}  e5 {[%clk 0:02:56]} 2. Nf3 {[%clk 0:03:00]}  Nc6 {[%clk 0:02:56]} 3. Nc3 {[%clk 0:03:00]}  Nf6 {[%clk 0:02:55]} 4. Nxe5 {[%clk 0:03:00]}  Nxe5 {[%clk 0:02:54]} 5. d4 {[%clk 0:03:00]}  Ng6 {[%clk 0:02:53]} 6. e5 {[%clk 0:03:00]}  Ng8 {[%clk 0:02:54]} 7. Bc4 {[%clk 0:03:00]}  d6 {[%clk 0:02:52]} 8. Qf3 {[%clk 0:03:00]}  Be6 {[%clk 0:02:50]} 9. Qxb7 {[%clk 0:02:02]}  dxe5 {[%clk 0:02:26]} 10. Bb5+ {[%clk 0:01:54]}  Bd7 {[%clk 0:02:25]} 11. Bxd7+ {[%clk 0:01:51]}  Kxd7 {[%clk 0:02:24]} 12. dxe5 {[%clk 0:01:51]}  Rb8 {[%clk 0:02:20]} 13. Qxa7 {[%clk 0:01:48]}  Nxe5 {[%clk 0:02:19]} 14. Bf4 {[%clk 0:01:44]}  Bd6 {[%clk 0:02:02]} 15. Bxe5 {[%clk 0:01:41]}  Bxe5 {[%clk 0:02:01]} 16. O-O-O+ {[%clk 0:01:36]}  Bd6 {[%clk 0:02:00]} 17. Rxd6+ {[%clk 0:01:32]}  Kxd6 {[%clk 0:01:57]} 18. Rd1+ {[%clk 0:01:31]}  Ke6 {[%clk 0:01:56]} 19. Rxd8 {[%clk 0:01:24]}  Rxd8 {[%clk 0:01:57]} 20. Qxc7 {[%clk 0:01:24]}  Nf6 {[%clk 0:01:57]} 21. a4 {[%clk 0:01:16]}  Rd7 {[%clk 0:01:54]} 22. Qc4+ {[%clk 0:01:12]}  Ke7 {[%clk 0:01:54]} 23. b4 {[%clk 0:01:08]}  Ra8 {[%clk 0:01:49]} 24. a5 {[%clk 0:01:03]}  Raa7 {[%clk 0:01:48]} 25. a6 {[%clk 0:00:50]}  Rac7 {[%clk 0:01:45]} 26. Qe2+ {[%clk 0:00:50]}  Kd8 {[%clk 0:01:42]} 27. Nb5 {[%clk 0:00:50]}  Rc8 {[%clk 0:01:38]} 28. a7 {[%clk 0:00:46]}  Nd5 {[%clk 0:01:37]} 29. Qe4 {[%clk 0:00:36]}  h6 {[%clk 0:01:26]} 30. c4 {[%clk 0:00:31]}  f5 {[%clk 0:01:18]} 31. Qd4 {[%clk 0:00:20]}  Nxb4 {[%clk 0:01:03]} 32. Qb6+ {[%clk 0:00:20]}  Ke7 {[%clk 0:01:03]} 33. Kb2 {[%clk 0:00:18]}  Nc6 {[%clk 0:01:00]} 34. Qe3+ {[%clk 0:00:14]}  Kf7 {[%clk 0:00:51]} 35. Qc5 {[%clk 0:00:13]}  Nxa7 {[%clk 0:00:42]} 36. Qxf5+ {[%clk 0:00:13]}  Ke7 {[%clk 0:00:40]} 37. Nxa7 {[%clk 0:00:13]}  Rxc4 {[%clk 0:00:37]} 38. Nb5 {[%clk 0:00:13]}  Rc6 {[%clk 0:00:34]} 39. Nc3 {[%clk 0:00:12]}  Rb7+ {[%clk 0:00:33]} 40. Kc2 {[%clk 0:00:12]}  Rbc7 {[%clk 0:00:33]} 41. Qe5+ {[%clk 0:00:13]}  Kf7 {[%clk 0:00:33]} 42. f4 {[%clk 0:00:13]}  Rc5 {[%clk 0:00:32]} 43. Qd4 {[%clk 0:00:11]}  Rc4 {[%clk 0:00:33]} 44. Qd5+ {[%clk 0:00:12]}  Kg6 {[%clk 0:00:31]} 45. Qe5 {[%clk 0:00:11]}  R7c5 {[%clk 0:00:30]} 46. Qe3 {[%clk 0:00:09]}  Kf5 {[%clk 0:00:28]} 47. Qd3+ {[%clk 0:00:08]}  Kxf4 {[%clk 0:00:27]} 48. Kd2 {[%clk 0:00:09]}  Rxc3 {[%clk 0:00:26]} 49. Qd4+ {[%clk 0:00:09]}  Kf5 {[%clk 0:00:26]} 50. Qxg7 {[%clk 0:00:10]}  Rc2+ {[%clk 0:00:25]} 51. Kd3 {[%clk 0:00:10]}  Rc6 {[%clk 0:00:24]} 52. Qh7+ {[%clk 0:00:10]}  Kg5 {[%clk 0:00:23]} 53. Qg7+ {[%clk 0:00:10]}  Kf5 {[%clk 0:00:23]} 54. Ke3 {[%clk 0:00:10]}  R2c3+ {[%clk 0:00:23]} 55. Kd4 {[%clk 0:00:10]}  R3c4+ {[%clk 0:00:22]} 56. Kd3 {[%clk 0:00:11]}  R4c5 {[%clk 0:00:22]} 57. g4+ {[%clk 0:00:09]}  Kf4 {[%clk 0:00:22]} 58. h3 {[%clk 0:00:10]}  Rd5+ {[%clk 0:00:20]} 59. Ke2 {[%clk 0:00:10]}  Re6+ {[%clk 0:00:20]} 60. Kf2 {[%clk 0:00:09]}  Rd2+ {[%clk 0:00:19]} 61. Kf1 {[%clk 0:00:10]}  Ree2 {[%clk 0:00:16]} 62. Qxh6+ {[%clk 0:00:09]}  Kg3 {[%clk 0:00:16]} 63. Qc6 {[%clk 0:00:07]}  Rf2+ {[%clk 0:00:15]} 64. Ke1 {[%clk 0:00:07]}  Rde2+ {[%clk 0:00:15]} 65. Kd1 {[%clk 0:00:08]}  Ra2 {[%clk 0:00:16]} 66. Qd6+ {[%clk 0:00:07]}  Kg2 {[%clk 0:00:16]} 67. Qd5+ {[%clk 0:00:07]}  Kg1 {[%clk 0:00:16]} 68. Qd4 {[%clk 0:00:07]}  Kh1 {[%clk 0:00:15]} 69. Qe4+ {[%clk 0:00:00]}  Rg2 {[%clk 0:00:15]} 0-1


[Site "https://www.chess.com"]

[Event "Titled Tuesday Blitz August 1 Late 2023"]
[White "Bochnicka, Vladimir"]
[Black "Rustemov, Alexander"]
[WhiteFideId "14943450"]
[BlackFideId "4119002"]
[WhiteElo "2505"]
[BlackElo "2841"]
[Result "0-1"]
[Round "4"]
[TimeControl "180+1"]
[Date "2023.08.01"]
[WhiteClock "0:01:33"]
[BlackClock "0:02:00"]
[Board "25"]

1. e4 {[%clk 0:03:00]}  e6 {[%clk 0:02:59]} 2. d4 {[%clk 0:02:59]}  d5 {[%clk 0:03:00]} 3. e5 {[%clk 0:02:57]}  c5 {[%clk 0:02:59]} 4. c3 {[%clk 0:02:58]}  Qb6 {[%clk 0:02:58]} 5. Nf3 {[%clk 0:02:58]}  Bd7 {[%clk 0:02:58]} 6. Bd3 {[%clk 0:02:54]}  cxd4 {[%clk 0:02:56]} 7. O-O {[%clk 0:02:51]}  Nc6 {[%clk 0:02:54]} 8. h4 {[%clk 0:02:43]}  Nge7 {[%clk 0:02:44]} 9. h5 {[%clk 0:02:43]}  a6 {[%clk 0:02:27]} 10. a3 {[%clk 0:02:27]}  Rc8 {[%clk 0:02:26]} 11. b4 {[%clk 0:02:26]}  Nf5 {[%clk 0:02:16]} 12. Bb2 {[%clk 0:02:01]}  g6 {[%clk 0:02:12]} 13. Bxf5 {[%clk 0:01:56]}  gxf5 {[%clk 0:02:09]} 14. cxd4 {[%clk 0:01:49]}  a5 {[%clk 0:02:02]} 15. bxa5 {[%clk 0:01:33]}  Qxb2 {[%clk 0:02:00]} 0-1


[Site "https://www.chess.com"]

[Event "Titled Tuesday Blitz August 1 Late 2023"]
[White "FuenfgegenWilly"]
[Black "Pranav, V"]
[BlackFideId "25060783"]
[WhiteElo "2440"]
[BlackElo "3011"]
[Result "0-1"]
[Round "4"]
[TimeControl "180+1"]
[Date "2023.08.01"]
[WhiteClock "0:00:43"]
[BlackClock "0:02:43"]
[Board "27"]

1. e4 {[%clk 0:03:00]}  c6 {[%clk 0:02:59]} 2. Nc3 {[%clk 0:03:01]}  d5 {[%clk 0:02:59]} 3. d4 {[%clk 0:03:02]}  dxe4 {[%clk 0:02:59]} 4. Nxe4 {[%clk 0:03:02]}  Nf6 {[%clk 0:03:00]} 5. Nxf6+ {[%clk 0:03:03]}  exf6 {[%clk 0:03:01]} 6. Bd3 {[%clk 0:03:02]}  Bd6 {[%clk 0:03:01]} 7. Ne2 {[%clk 0:03:03]}  O-O {[%clk 0:03:02]} 8. c3 {[%clk 0:03:02]}  Nd7 {[%clk 0:03:02]} 9. Qc2 {[%clk 0:03:02]}  g6 {[%clk 0:03:01]} 10. O-O {[%clk 0:02:58]}  Re8 {[%clk 0:03:01]} 11. Bd2 {[%clk 0:02:49]}  f5 {[%clk 0:03:01]} 12. Rae1 {[%clk 0:02:48]}  Nf6 {[%clk 0:03:01]} 13. Bg5 {[%clk 0:02:38]}  Bxh2+ {[%clk 0:03:01]} 14. Kh1 {[%clk 0:02:35]}  Bd6 {[%clk 0:02:58]} 15. Ng3 {[%clk 0:02:24]}  Be6 {[%clk 0:02:54]} 16. c4 {[%clk 0:02:22]}  h6 {[%clk 0:02:53]} 17. Bh4 {[%clk 0:01:51]}  Be7 {[%clk 0:02:47]} 18. Qc3 {[%clk 0:01:21]}  Ng4 {[%clk 0:02:42]} 19. Bxe7 {[%clk 0:00:43]}  Qxe7 {[%clk 0:02:43]} 0-1


[Site "https://www.chess.com"]

[Event "Titled Tuesday Blitz August 1 Late 2023"]
[White "Martinez Alcantara, Jose Eduardo"]
[Black "Ambartsumova, Karina"]
[WhiteFideId "3805662"]
[BlackFideId "4166299"]
[WhiteElo "2973"]
[BlackElo "2555"]
[Result "1-0"]
[Round "4"]
[TimeControl "180+1"]
[Date "2023.08.01"]
[WhiteClock "0:00:36"]
[BlackClock "0:00:00"]
[Board "30"]

1. e4 {[%clk 0:03:00]}  e5 {[%clk 0:02:59]} 2. Nf3 {[%clk 0:03:01]}  Nc6 {[%clk 0:03:00]} 3. Nc3 {[%clk 0:03:01]}  Nf6 {[%clk 0:02:59]} 4. h3 {[%clk 0:03:02]}  d5 {[%clk 0:02:57]} 5. exd5 {[%clk 0:03:03]}  Nxd5 {[%clk 0:02:58]} 6. Bb5 {[%clk 0:03:02]}  Nxc3 {[%clk 0:02:58]} 7. bxc3 {[%clk 0:03:03]}  Bd6 {[%clk 0:02:58]} 8. O-O {[%clk 0:03:03]}  O-O {[%clk 0:02:58]} 9. d4 {[%clk 0:03:03]}  exd4 {[%clk 0:02:58]} 10. cxd4 {[%clk 0:03:04]}  Qf6 {[%clk 0:02:51]} 11. Rb1 {[%clk 0:02:52]}  h6 {[%clk 0:02:43]} 12. Bd3 {[%clk 0:02:47]}  Nb4 {[%clk 0:01:56]} 13. Be4 {[%clk 0:02:30]}  c6 {[%clk 0:01:53]} 14. Bd2 {[%clk 0:02:28]}  Nd5 {[%clk 0:01:46]} 15. c4 {[%clk 0:02:28]}  Nf4 {[%clk 0:01:44]} 16. Rb3 {[%clk 0:02:24]}  Re8 {[%clk 0:01:39]} 17. Re1 {[%clk 0:02:10]}  Bd7 {[%clk 0:01:29]} 18. Qc2 {[%clk 0:01:47]}  Re7 {[%clk 0:01:16]} 19. Rxb7 {[%clk 0:01:31]}  Rae8 {[%clk 0:01:09]} 20. c5 {[%clk 0:01:32]}  Bb8 {[%clk 0:01:06]} 21. Ne5 {[%clk 0:01:25]}  Bxh3 {[%clk 0:00:34]} 22. Rxe7 {[%clk 0:01:14]}  Rxe7 {[%clk 0:00:33]} 23. Bxf4 {[%clk 0:00:54]}  Qxf4 {[%clk 0:00:31]} 24. gxh3 {[%clk 0:00:55]}  Bxe5 {[%clk 0:00:12]} 25. dxe5 {[%clk 0:00:56]}  Rxe5 {[%clk 0:00:11]} 26. Bh7+ {[%clk 0:00:55]}  Kf8 {[%clk 0:00:11]} 27. Rxe5 {[%clk 0:00:56]}  Qxe5 {[%clk 0:00:12]} 28. Be4 {[%clk 0:00:57]}  Qa1+ {[%clk 0:00:10]} 29. Kg2 {[%clk 0:00:56]}  Qf6 {[%clk 0:00:11]} 30. Qd2 {[%clk 0:00:49]}  Kg8 {[%clk 0:00:11]} 31. Qe3 {[%clk 0:00:46]}  g6 {[%clk 0:00:11]} 32. Qxh6 {[%clk 0:00:40]}  Qd4 {[%clk 0:00:09]} 33. Qe3 {[%clk 0:00:40]}  Qf6 {[%clk 0:00:07]} 34. a4 {[%clk 0:00:38]}  Kg7 {[%clk 0:00:05]} 35. a5 {[%clk 0:00:38]}  Qe6 {[%clk 0:00:04]} 36. Qd4+ {[%clk 0:00:37]}  Kh7 {[%clk 0:00:04]} 37. Bf3 {[%clk 0:00:37]}  Qf6 {[%clk 0:00:00]} 38. Qxf6 {[%clk 0:00:36]} 1-0


[Site "https://www.chess.com"]

[Event "Titled Tuesday Blitz August 1 Late 2023"]
[White "Perez Ponsa, Federico"]
[Black "Shapiro, Viktor"]
[WhiteFideId "117927"]
[BlackFideId "4175700"]
[WhiteElo "2872"]
[BlackElo "2552"]
[Result "1-0"]
[Round "4"]
[TimeControl "180+1"]
[Date "2023.08.01"]
[WhiteClock "0:00:15"]
[BlackClock "0:00:08"]
[Board "31"]

1. e4 {[%clk 0:02:51]}  Nf6 {[%clk 0:03:00]} 2. e5 {[%clk 0:02:51]}  Nd5 {[%clk 0:03:01]} 3. d4 {[%clk 0:02:52]}  d6 {[%clk 0:03:01]} 4. Nf3 {[%clk 0:02:52]}  Bg4 {[%clk 0:03:01]} 5. Be2 {[%clk 0:02:50]}  e6 {[%clk 0:03:01]} 6. h3 {[%clk 0:02:50]}  Bh5 {[%clk 0:03:01]} 7. exd6 {[%clk 0:02:50]}  cxd6 {[%clk 0:03:01]} 8. c4 {[%clk 0:02:51]}  Nb6 {[%clk 0:03:01]} 9. Nc3 {[%clk 0:02:51]}  Be7 {[%clk 0:03:01]} 10. d5 {[%clk 0:02:48]}  e5 {[%clk 0:03:02]} 11. g4 {[%clk 0:02:47]}  Bg6 {[%clk 0:03:01]} 12. h4 {[%clk 0:02:47]}  h5 {[%clk 0:03:02]} 13. g5 {[%clk 0:02:47]}  N8d7 {[%clk 0:03:02]} 14. Be3 {[%clk 0:02:46]}  Rc8 {[%clk 0:03:02]} 15. b3 {[%clk 0:02:45]}  Nc5 {[%clk 0:03:01]} 16. Bxc5 {[%clk 0:02:45]}  Rxc5 {[%clk 0:03:01]} 17. Bd3 {[%clk 0:02:46]}  O-O {[%clk 0:02:59]} 18. Bxg6 {[%clk 0:02:37]}  fxg6 {[%clk 0:02:59]} 19. Ne4 {[%clk 0:02:37]}  Rc8 {[%clk 0:02:57]} 20. Nfd2 {[%clk 0:02:36]}  Rf4 {[%clk 0:02:54]} 21. Qe2 {[%clk 0:02:35]}  Nd7 {[%clk 0:02:41]} 22. Rh3 {[%clk 0:02:04]}  Qa5 {[%clk 0:02:37]} 23. Kf1 {[%clk 0:02:03]}  Rcf8 {[%clk 0:02:34]} 24. Kg2 {[%clk 0:01:58]}  Nc5 {[%clk 0:02:32]} 25. f3 {[%clk 0:01:39]}  Nd7 {[%clk 0:02:09]} 26. a3 {[%clk 0:01:29]}  a6 {[%clk 0:02:01]} 27. b4 {[%clk 0:01:30]}  Qc7 {[%clk 0:02:01]} 28. Qd3 {[%clk 0:01:29]}  Kh7 {[%clk 0:01:46]} 29. c5 {[%clk 0:01:02]}  R8f5 {[%clk 0:01:23]} 30. Rc1 {[%clk 0:01:00]}  Bf8 {[%clk 0:01:11]} 31. c6 {[%clk 0:00:57]}  b5 {[%clk 0:01:08]} 32. cxd7 {[%clk 0:00:51]}  Qxc1 {[%clk 0:01:06]} 33. d8=Q {[%clk 0:00:49]}  Qd1 {[%clk 0:00:54]} 34. Rh1 {[%clk 0:00:34]}  Rg4+ {[%clk 0:00:30]} 35. fxg4 {[%clk 0:00:30]}  Qxg4+ {[%clk 0:00:30]} 36. Ng3 {[%clk 0:00:29]}  e4 {[%clk 0:00:17]} 37. Qxe4 {[%clk 0:00:23]}  Rf4 {[%clk 0:00:15]} 38. Qxf8 {[%clk 0:00:19]}  Rxe4 {[%clk 0:00:14]} 39. Nxe4 {[%clk 0:00:19]}  a5 {[%clk 0:00:13]} 40. Rc1 {[%clk 0:00:14]}  axb4 {[%clk 0:00:11]} 41. Nf6+ {[%clk 0:00:14]}  gxf6 {[%clk 0:00:08]} 42. Rc7+ {[%clk 0:00:15]} 1-0


[Site "https://www.chess.com"]